bitfinex/quotes_BTCUSD_20260221
["timestamp","ask_amount","ask_price","bid_price","bid_amount"]
[1771675251044,0.02443924,68177.0,68170.0,0.07334536]
[1771675252371,0.02443924,68177.0,68170.0,0.07327441]
[1771675253718,0.09777778,68177.0,68169.0,0.07356497]
[1771675256211,0.09777778,68177.0,68170.0,0.07334591]
[1771675257071,0.0002,68177.0,68167.0,0.00022]
[1771675257277,0.07334353,68173.0,68162.0,0.0003501]
[1771675257479,0.07334353,68173.0,68165.0,0.07357056]
[1771675257897,0.07334353,68173.0,68166.0,0.07335033]
[1771675258116,0.09758277,68174.0,68166.0,0.07335033]
[1771675259445,0.02423924,68174.0,68167.0,0.07334857]
[1771675259676,0.02423924,68174.0,68168.0,0.0733481]
[1771675260625,0.07353865,68177.0,68169.0,0.07334696]
[1771675261521,0.07333984,68176.0,68169.0,0.07334696]
[1771675263263,0.07333984,68176.0,68168.0,0.07334796]
[1771675263965,0.0002,68177.0,68169.0,0.07334679]
[1771675265444,0.07333989,68176.0,68169.0,0.07334679]
[1771675266033,0.02443924,68177.0,68166.0,0.00022]
[1771675266220,0.07334322,68173.0,68166.0,0.00022]
[1771675266422,0.07334066,68175.0,68166.0,0.07356952]
[1771675266713,0.07334066,68175.0,68168.0,0.07334794]
[1771675266891,0.07333959,68176.0,68168.0,0.07334794]
[1771675267755,0.07333959,68176.0,68168.0,0.07320356]
[1771675267944,0.07333959,68176.0,68168.0,0.07305919]
[1771675271677,0.07333959,68176.0,68168.0,0.07327919]
[1771675273861,0.07333959,68176.0,68168.0,0.07317098]
[1771675274894,0.07333959,68176.0,68169.0,0.07334696]
[1771675277385,0.09777797,68177.0,68169.0,0.07334696]
[1771675277815,0.09777797,68177.0,68169.0,0.07375926]
[1771675278154,0.07353873,68177.0,68169.0,0.07375926]
[1771675278662,0.07349584,68180.0,68171.0,0.07334469]
[1771675279003,0.07349584,68180.0,68172.0,0.09644436]
[1771675279774,0.0002,68176.0,68172.0,0.09673356]
[1771675280775,0.0002,68176.0,68172.0,0.07363309]
[1771675280943,0.0002,68176.0,68172.0,0.0002892]
[1771675282945,0.0002,68176.0,68172.0,0.07363292]
[1771675283196,0.58644571,68208.0,68173.0,0.02310047]
[1771675283197,0.07333347,68182.0,68173.0,0.02310047]
[1771675283405,0.07333446,68181.0,68173.0,0.09644303]
[1771675283763,0.07333446,68181.0,68173.0,0.09673223]
[1771675287541,0.07333446,68181.0,68173.0,0.07363176]
[1771675287860,0.07333535,68180.0,68173.0,0.07363176]
[1771675289224,0.07333535,68180.0,68173.0,0.0002892]
[1771675292969,0.07333661,68179.0,68173.0,0.0002892]
[1771675294414,0.07333535,68180.0,68173.0,0.0002892]
[1771675294985,0.07318867,68180.0,68173.0,0.0002892]
[1771675297334,0.07333638,68179.0,68173.0,0.0002892]
[1771675301388,0.07333517,68181.0,68173.0,0.07363145]
[1771675301587,0.0735353,68180.0,68173.0,0.07363145]
[1771675301789,0.0735353,68180.0,68174.0,0.02260059]
[1771675302064,0.01689619,68182.0,68175.0,0.02260059]
[1771675302434,0.07333433,68181.0,68175.0,0.02260059]
[1771675302999,0.07333433,68181.0,68175.0,0.02288979]
[1771675303804,0.07333598,68180.0,68175.0,0.02288979]
[1771675304150,0.07333433,68181.0,68175.0,0.02288979]
[1771675304349,0.07333352,68182.0,68175.0,0.02288979]
[1771675304559,0.07333232,68183.0,68175.0,0.02288979]
[1771675305551,0.07333436,68181.0,68175.0,0.02288979]
[1771675306606,0.07333345,68182.0,68175.0,0.02288979]
[1771675308077,0.07333333,68182.0,68175.0,0.09623021]
[1771675308421,0.07333333,68182.0,68175.0,0.02288979]
[1771675309821,0.07353232,68183.0,68176.0,0.02260059]
[1771675310021,0.07353232,68183.0,68176.0,0.02288979]
[1771675310724,0.06153232,68183.0,68176.0,0.02288979]
[1771675312267,0.0002,68183.0,68176.0,0.02288979]
[1771675312776,0.0002,68183.0,68179.0,0.09593601]
[1771675313128,0.0002,68183.0,68179.0,0.09610211]
[1771675313338,0.0002,68183.0,68180.0,0.07333514]
[1771675314097,0.0002,68183.0,68180.0,0.07350124]
[1771675314855,0.0002,68183.0,68182.0,0.07333313]
[1771675315065,0.0002,68183.0,68182.0,0.07349923]
[1771675315671,0.0002,68183.0,68182.0,0.09609982]
[1771675317109,0.0002,68183.0,68182.0,0.02276669]
[1771675317300,0.0002,68183.0,68179.0,0.07333557]
[1771675317508,0.0002,68183.0,68179.0,0.07333631]
[1771675318215,0.02121348,68183.0,68179.0,0.07333631]
[1771675318434,0.02121348,68183.0,68180.0,0.07333526]
[1771675318634,0.0002,68183.0,68180.0,0.07333526]
[1771675319361,0.0002,68183.0,68179.0,0.07333434]
[1771675319496,0.0002,68183.0,68181.0,0.07333399]
[1771675320131,0.0002,68183.0,68180.0,0.07333511]
[1771675324743,0.0002,68183.0,68181.0,0.07333414]
[1771675324943,0.0002,68183.0,68178.0,0.02260059]
[1771675325148,0.0002,68183.0,68178.0,0.02250404]
[1771675325584,0.0002,68183.0,68182.0,0.07333313]
[1771675325787,0.0002,68183.0,68182.0,0.09593372]
[1771675327395,0.07348496,68190.0,68182.0,0.09593372]
[1771675327594,0.09461546,68190.0,68182.0,0.09593372]
[1771675329896,0.07332567,68189.0,68182.0,0.02260059]
[1771675330539,0.07332567,68189.0,68182.0,0.09593351]
[1771675330751,0.0214905,68190.0,68183.0,0.07333128]
[1771675331786,0.0214905,68190.0,68184.0,0.07333091]
[1771675333273,0.0214905,68190.0,68183.0,0.07333173]
[1771675334255,0.00047702,68190.0,68183.0,0.07333173]
[1771675334421,0.00047702,68190.0,68183.0,0.02358506]
[1771675334592,0.00047702,68190.0,68184.0,0.07333098]
[1771675335479,0.00047702,68190.0,68185.0,0.07332895]
[1771675335608,0.00047702,68190.0,68184.0,0.07333098]
[1771675335609,0.00047702,68190.0,68186.0,0.09691371]
[1771675336014,0.02101348,68194.0,68186.0,0.09691371]
[1771675336212,0.02109924,68194.0,68186.0,0.09691371]
[1771675337501,0.09441949,68194.0,68187.0,0.07332776]
[1771675339838,0.02109924,68194.0,68187.0,0.0560478]
[1771675340018,0.02109924,68194.0,68187.0,0.04951282]
[1771675341189,0.02109924,68194.0,68186.0,0.0969119]
[1771675341387,0.02109924,68194.0,68187.0,0.07332703]
[1771675342116,0.02109924,68194.0,68188.0,0.07332649]
[1771675342696,0.02109924,68194.0,68187.0,0.07332761]
[1771675344090,0.02129924,68194.0,68188.0,0.07332638]
[1771675345457,0.02129924,68194.0,68188.0,0.07318237]
[1771675346411,0.02129924,68194.0,68187.0,0.07332772]
[1771675351677,0.02129924,68194.0,68187.0,0.07354772]
[1771675352281,0.02129924,68194.0,68187.0,0.0734037]
[1771675353062,0.02101348,68201.0,68194.0,0.07331927]
[1771675353284,0.02101348,68201.0,68190.0,0.02374506]
[1771675353285,0.07331486,68199.0,68191.0,0.07332345]
[1771675353738,0.02101348,68198.0,68191.0,0.07332345]
[1771675355144,0.02101348,68198.0,68192.0,0.07332238]
[1771675356529,0.02101348,68198.0,68191.0,0.07332306]
[1771675357213,0.02101348,68198.0,68192.0,0.07332214]
[1771675359439,0.02101348,68198.0,68191.0,0.0733232]
[1771675360099,0.07331383,68200.0,68192.0,0.07332226]
[1771675360439,0.07331486,68199.0,68192.0,0.07332226]
[1771675360788,0.09432834,68199.0,68192.0,0.07332226]
[1771675361575,6.859e-05,68201.0,68190.0,0.00016]
[1771675361706,0.02098148,68194.0,68187.0,0.07354735]
[1771675362043,0.02098148,68194.0,68188.0,0.0208726]
[1771675362244,0.02098148,68194.0,68188.0,0.07332668]
[1771675362863,0.02098148,68194.0,68189.0,0.07332552]
[1771675363042,0.01905988,68193.0,68189.0,0.07332552]
[1771675368348,0.01905988,68193.0,68187.0,0.07236093]
[1771675368541,0.04255513,68186.0,68173.0,0.00022]
[1771675368735,0.09682701,68184.0,68176.0,0.0003431]
[1771675369083,0.02349525,68184.0,68176.0,0.0003431]
[1771675369307,0.07333421,68181.0,68173.0,0.07356281]
[1771675369532,0.07333421,68181.0,68173.0,0.00022]
[1771675370097,0.07333421,68181.0,68173.0,0.07356269]
[1771675371461,0.07333421,68181.0,68176.0,0.00022]
[1771675371607,0.02349525,68180.0,68176.0,0.00022]
[1771675372387,0.09683075,68180.0,68176.0,0.00022]
[1771675372508,0.09683075,68180.0,68173.0,0.00022]
[1771675372714,0.09688789,68180.0,68173.0,0.00022]
[1771675373324,0.02349525,68179.0,68173.0,0.01943279]
[1771675373529,5.714e-05,68180.0,68173.0,0.01943279]
[1771675377996,5.714e-05,68180.0,68173.0,0.01965279]
[1771675378802,0.00025714,68180.0,68173.0,0.01965279]
[1771675381045,0.00025714,68180.0,68174.0,0.07334171]
[1771675383228,0.00025714,68180.0,68173.0,0.07356243]
[1771675383424,5.085e-05,68180.0,68173.0,0.07356243]
[1771675383636,0.07334035,68176.0,68171.0,0.17616]
[1771675383837,0.0968356,68176.0,68171.0,0.17616]
[1771675384255,0.07334066,68175.0,68171.0,0.17616]
[1771675384635,0.07334232,68174.0,68171.0,0.17616]
[1771675384836,0.07334066,68175.0,68171.0,0.17616]
[1771675385042,0.07334209,68174.0,68171.0,0.17616]
[1771675385848,0.09683615,68175.0,68171.0,0.17638]
[1771675386257,0.0733409,68175.0,68171.0,0.17638]
[1771675388131,0.07333924,68177.0,68171.0,0.17638]
[1771675388132,0.0968323,68179.0,68171.0,0.17638]
[1771675388334,5.085e-05,68180.0,68171.0,0.2697247]
[1771675388535,0.07338644,68180.0,68171.0,0.2697247]
[1771675389554,0.07338644,68180.0,68173.0,0.07334266]
[1771675390784,5.085e-05,68180.0,68173.0,0.07334266]
[1771675391497,0.07338625,68180.0,68173.0,0.07334266]
[1771675393694,0.07333333,68182.0,68173.0,0.09772988]
[1771675393695,0.07333457,68181.0,68173.0,0.09772988]
[1771675393928,0.00016,68190.0,68174.0,0.07334174]
[1771675394107,0.00016,68190.0,68175.0,0.02438722]
[1771675394336,0.07333241,68183.0,68176.0,0.02438722]
[1771675394699,0.07333126,68184.0,68176.0,0.09772669]
[1771675397661,0.07333126,68184.0,68177.0,0.07333839]
[1771675398007,0.07332822,68187.0,68176.0,0.09772478]
[1771675398336,0.07332696,68188.0,68180.0,0.07333447]
[1771675398536,0.07332696,68188.0,68181.0,0.07333411]
[1771675398740,0.0002,68184.0,68181.0,0.07333411]
[1771675399125,0.0002,68184.0,68180.0,0.07333501]
[1771675404024,0.0002,68184.0,68179.0,0.07333606]
[1771675406743,0.0002,68184.0,68180.0,0.07333485]
[1771675407647,0.0002,68184.0,68179.0,0.09772328]
[1771675409336,0.0002,68184.0,68179.0,0.07333606]
[1771675410262,0.0002,68184.0,68178.0,0.07333703]
[1771675410472,0.02000343,68183.0,68174.0,0.07334143]
[1771675410661,0.07333401,68182.0,68174.0,0.07334143]
[1771675410908,0.02000343,68183.0,68173.0,8.576e-05]
[1771675411105,0.16559351,68184.0,68173.0,8.576e-05]
[1771675411388,0.07333901,68177.0,68170.0,0.0002831]
[1771675411537,0.0733377,68178.0,68171.0,0.00033702]
[1771675412183,0.02000343,68179.0,68171.0,0.00033702]
[1771675412356,0.07353187,68184.0,68171.0,0.00033702]
[1771675412542,0.07353187,68184.0,68176.0,0.07333932]
[1771675414620,0.07333213,68183.0,68176.0,0.07333932]
[1771675415922,0.07353125,68184.0,68176.0,0.07333932]
[1771675416790,0.07337289,68184.0,68176.0,0.07333932]
[1771675418110,0.07337289,68184.0,68176.0,0.07355932]
[1771675418311,4.164e-05,68184.0,68177.0,0.07333841]
[1771675418510,4.164e-05,68184.0,68178.0,0.07333672]
[1771675420257,4.164e-05,68184.0,68176.0,0.00022]
[1771675420429,0.07332795,68187.0,68179.0,0.07333556]
[1771675423859,0.07332905,68186.0,68178.0,0.07333537]
[1771675424187,0.07332935,68186.0,68178.0,0.07333537]
[1771675426242,0.07332935,68186.0,68178.0,0.07333744]
[1771675432167,0.07352935,68186.0,68178.0,0.07333744]
[1771675433434,0.0002,68186.0,68177.0,0.07333826]
[1771675433948,0.07332991,68185.0,68177.0,0.07333826]
[1771675438820,0.07332991,68185.0,68177.0,0.07355826]
[1771675439816,0.07332991,68185.0,68178.0,0.07333706]
[1771675440816,0.07353083,68186.0,68178.0,0.07333706]
[1771675441200,0.07353083,68186.0,68177.0,0.07355826]
[1771675441518,0.07333091,68185.0,68177.0,0.07355826]
[1771675441900,0.07333118,68184.0,68177.0,0.00022]
[1771675442276,0.07333185,68185.0,68177.0,0.00022]
[1771675442472,0.07333167,68184.0,68177.0,0.00022]
[1771675443124,0.07333167,68184.0,68177.0,0.07355842]
[1771675443819,0.07333167,68184.0,68177.0,0.00022]
[1771675444022,0.07333212,68183.0,68177.0,0.00022]
[1771675444423,0.07333135,68184.0,68177.0,0.00022]
[1771675445215,0.0733321,68183.0,68177.0,0.00022]
[1771675445382,0.0002,68186.0,68177.0,0.00022]
[1771675445584,0.07333174,68184.0,68177.0,0.00022]
[1771675446311,0.07333174,68184.0,68177.0,0.07355834]
[1771675446911,0.07333174,68184.0,68177.0,0.00022]
[1771675452480,0.07333218,68183.0,68177.0,0.00022]
[1771675452673,0.07333176,68184.0,68177.0,0.00022]
[1771675452988,0.07333299,68183.0,68177.0,0.00022]
[1771675457656,0.07333446,68181.0,68177.0,0.00022]
[1771675457973,0.07333518,68182.0,68172.0,0.07334334]
[1771675458175,0.07333518,68182.0,68169.0,0.29360567]
[1771675458176,0.01881425,68180.0,68169.0,0.00022]
[1771675458382,0.09215479,68176.0,68169.0,0.00022]
[1771675458800,0.01881425,68176.0,68169.0,0.00022]
[1771675459003,0.09215416,68176.0,68169.0,0.00022]
[1771675461546,0.07333991,68176.0,68169.0,0.00022]
[1771675462309,0.09633586,68175.0,68167.0,0.07334719]
[1771675462735,0.02299507,68175.0,68166.0,0.07356823]
[1771675462939,0.02299507,68175.0,68168.0,0.07334798]
[1771675463521,0.02283672,68175.0,68168.0,0.07334798]
[1771675463969,0.07333708,68179.0,68167.0,0.02255105]
[1771675464166,0.07333708,68179.0,68172.0,0.02255105]
[1771675464551,0.07349565,68180.0,68172.0,0.09589468]
[1771675465330,0.07333646,68179.0,68172.0,0.02255105]
[1771675465530,0.07333887,68177.0,68169.0,0.07334695]
[1771675466597,0.07333887,68177.0,68170.0,0.07334583]
[1771675468356,0.07333776,68178.0,68170.0,0.07334583]
[1771675468555,0.00016,68180.0,68169.0,0.02255105]
[1771675468757,0.02299507,68179.0,68168.0,0.07356605]
[1771675469689,0.06738136,68177.0,68168.0,0.04058961]
[1771675470098,0.06738136,68177.0,68169.0,0.07334712]
[1771675470617,0.0733396,68176.0,68168.0,0.07334784]
[1771675471604,0.0733396,68176.0,68169.0,0.07334708]
[1771675471811,0.07333884,68177.0,68169.0,0.07334708]
[1771675472247,0.07333884,68177.0,68169.0,0.09589813]
[1771675472650,0.0733371,68179.0,68169.0,0.02255105]
[1771675472829,0.07349612,68180.0,68169.0,0.04115813]
[1771675473030,0.00016,68180.0,68173.0,0.07334267]
[1771675473717,0.07349532,68180.0,68173.0,0.07334267]
[1771675473918,0.07349532,68180.0,68172.0,0.07334349]
[1771675474802,0.0002,68176.0,68172.0,0.07334349]
[1771675478381,0.0002,68176.0,68172.0,0.07340063]
[1771675480895,0.0002,68184.0,68173.0,0.07334281]
[1771675481094,0.0002,68184.0,68174.0,0.01828331]
[1771675481429,0.07333309,68183.0,68174.0,0.09747809]
[1771675482935,0.07353101,68184.0,68174.0,0.02413717]
[1771675483238,0.07353101,68184.0,68175.0,0.07334066]
[1771675484780,0.07333212,68183.0,68175.0,0.07334066]
[1771675484979,0.07333212,68183.0,68172.0,5.714e-05]
[1771675484980,0.31651632,68200.0,68180.0,0.00016]
[1771675485136,0.07333522,68181.0,68172.0,0.07340067]
[1771675485732,0.07333522,68181.0,68172.0,0.09753784]
[1771675485932,0.07333522,68181.0,68173.0,0.02413717]
[1771675486189,0.07334053,68176.0,68170.0,0.0002831]
[1771675486344,0.07334104,68175.0,68170.0,0.0002831]
[1771675486731,6.861e-05,68176.0,68168.0,0.00022]
[1771675486732,0.07334378,68174.0,68168.0,0.00022]
[1771675486933,0.07334066,68175.0,68168.0,0.00022]
[1771675487357,0.09795922,68176.0,68168.0,0.00022]
[1771675487563,0.07334164,68175.0,68168.0,0.00022]
[1771675489170,0.07330121,68175.0,68168.0,0.00022]
[1771675489963,0.07334252,68174.0,68168.0,0.00022]
[1771675490524,0.07330121,68175.0,68168.0,0.00022]
[1771675490867,0.07334174,68174.0,68168.0,0.00022]
[1771675491122,0.07334309,68173.0,68168.0,0.00022]
[1771675491409,0.07334209,68174.0,68168.0,0.00022]
[1771675493926,0.07334301,68173.0,68168.0,0.00022]
[1771675494130,0.07334207,68174.0,68168.0,0.00022]
[1771675494273,0.07334277,68175.0,68168.0,0.00022]
[1771675494633,0.073342,68174.0,68168.0,0.00022]
[1771675494837,0.0733427,68175.0,68168.0,0.00022]
[1771675495413,0.07334174,68174.0,68168.0,0.00022]
[1771675496062,0.07330131,68174.0,68168.0,0.00022]
[1771675496240,0.07334246,68174.0,68168.0,0.00022]
[1771675496741,0.07334103,68175.0,68168.0,0.00022]
[1771675497521,0.07334177,68174.0,68168.0,0.00022]
[1771675500282,0.07334284,68173.0,68168.0,0.00022]
[1771675500934,0.07334568,68171.0,68166.0,0.00022]
[1771675501163,0.09789656,68171.0,68166.0,0.00022]
[1771675502702,0.02455088,68171.0,68165.0,0.00022]
[1771675502900,0.0733491,68168.0,68160.0,0.0690044]
[1771675503099,0.0733491,68168.0,68160.0,0.14236093]
[1771675503908,0.07330867,68168.0,68160.0,0.14236093]
[1771675504068,0.07330867,68168.0,68160.0,0.14254483]
[1771675505527,0.07330867,68168.0,68159.0,0.00022]
[1771675505528,0.07335383,68163.0,68159.0,0.00022]
[1771675505683,0.07335401,68163.0,68159.0,0.00022]
[1771675506481,0.07335276,68164.0,68159.0,0.00022]
[1771675506676,0.07335197,68165.0,68158.0,0.00022]
[1771675506677,0.07335434,68163.0,68158.0,0.00022]
[1771675507297,0.09790522,68163.0,68158.0,0.00022]
[1771675508230,0.02455088,68163.0,68155.0,0.00022]
[1771675508389,0.07335704,68160.0,68154.0,0.00022]
[1771675508588,0.07335704,68160.0,68153.0,0.00022]
[1771675508589,0.09694902,68158.0,68153.0,0.00022]
[1771675508786,0.09694902,68158.0,68151.0,0.00022]
[1771675509202,0.07336004,68157.0,68151.0,0.00022]
[1771675509602,0.09694902,68158.0,68151.0,0.00022]
[1771675510254,0.02358932,68158.0,68152.0,0.07358537]
[1771675510638,0.0969484,68158.0,68152.0,0.00022]
[1771675512568,0.07335646,68161.0,68153.0,0.07336434]
[1771675512764,0.07335646,68161.0,68154.0,0.07336308]
[1771675513362,0.07188802,68162.0,68154.0,0.07336308]
[1771675513920,0.07335383,68163.0,68155.0,0.07336145]
[1771675514097,0.07335383,68163.0,68156.0,0.07336103]
[1771675514653,0.0733528,68164.0,68156.0,0.07336103]
[1771675515662,0.0733536,68163.0,68155.0,0.07336184]
[1771675516262,0.0733536,68163.0,68155.0,0.09659233]
[1771675516693,0.07334957,68167.0,68153.0,0.07358326]
[1771675516869,0.0002,68168.0,68160.0,0.07335664]
[1771675516870,0.07354899,68168.0,68160.0,0.07335664]
[1771675517077,0.0002,68168.0,68161.0,0.02323049]
[1771675517475,0.0002,68168.0,68160.0,0.07335623]
[1771675518039,0.0002,68168.0,68161.0,0.07335573]
[1771675522114,0.00016,68170.0,68163.0,0.07335357]
[1771675522309,0.07350678,68170.0,68162.0,0.09658497]
[1771675522514,0.07350678,68170.0,68162.0,0.02323049]
[1771675522952,0.07350678,68170.0,68160.0,0.07335607]
[1771675523670,0.07334718,68169.0,68161.0,0.07335562]
[1771675524474,0.07334448,68172.0,68162.0,0.0733544]
[1771675524779,0.00026861,68176.0,68164.0,0.09658221]
[1771675525341,0.00026861,68176.0,68164.0,0.02323049]
[1771675525533,0.07334578,68171.0,68164.0,0.02323049]
[1771675527001,0.07334578,68171.0,68164.0,0.09658289]
[1771675527411,0.0002,68169.0,68164.0,0.09658289]
[1771675527615,0.0002,68169.0,68164.0,0.02323049]
[1771675529811,0.07334578,68171.0,68164.0,0.02323049]
[1771675530944,0.07334415,68172.0,68164.0,0.09658249]
[1771675531510,0.07334501,68171.0,68164.0,0.09658249]
[1771675531706,0.07334501,68171.0,68164.0,0.02323049]
[1771675537625,0.02254861,68171.0,68164.0,0.02323049]
[1771675537828,0.02239005,68171.0,68164.0,0.02323049]
[1771675538655,0.07260646,68172.0,68164.0,0.09658226]
[1771675538883,0.07354392,68172.0,68164.0,0.09658226]
[1771675540566,0.07334624,68170.0,68164.0,0.02323049]
[1771675541300,0.07334624,68170.0,68164.0,0.02345049]
[1771675541472,0.07334519,68171.0,68164.0,0.02345049]
[1771675544127,0.07334519,68171.0,68164.0,0.09680289]
[1771675546311,0.07354412,68172.0,68164.0,0.09680289]
[1771675548329,0.73327334,68164.0,68162.0,0.07335253]
[1771675549562,0.73327334,68164.0,68163.0,0.07335357]
[1771675550375,0.68369559,68164.0,68163.0,0.07335357]
[1771675552403,0.68353703,68164.0,68157.0,0.00022]
[1771675552604,0.02318917,68163.0,68158.0,0.07335896]
[1771675552758,0.02303057,68163.0,68158.0,0.07335896]
[1771675557332,0.02303057,68163.0,68157.0,0.00022]
[1771675558129,0.02303057,68163.0,68157.0,0.07357956]
[1771675559705,0.02303057,68163.0,68158.0,0.07335886]
[1771675559908,0.02303057,68163.0,68158.0,0.09510606]
[1771675560363,0.68373703,68164.0,68158.0,0.09510606]
[1771675560639,0.68373703,68164.0,68160.0,0.0217472]
[1771675560838,0.68373703,68164.0,68161.0,0.07335487]
[1771675560979,0.65929672,68164.0,68162.0,0.0217472]
[1771675561631,0.65929672,68164.0,68159.0,0.07335777]
[1771675561832,0.65929672,68164.0,68159.0,0.09510497]
[1771675562700,0.65929672,68164.0,68159.0,0.08073378]
[1771675564226,0.64489769,68164.0,68159.0,0.08073378]
[1771675564639,0.64489769,68164.0,68153.0,1e-08]
[1771675564640,0.02318917,68163.0,68153.0,1e-08]
[1771675564841,0.0733631,68155.0,68153.0,1e-08]
[1771675565041,0.07336326,68154.0,68153.0,1e-08]
[1771675566046,0.00592709,68159.0,68140.0,0.00016]
[1771675566244,0.07336972,68148.0,68145.0,0.00039022]
[1771675566556,0.07336896,68149.0,68145.0,0.00039022]
[1771675566894,0.09655813,68149.0,68145.0,0.00039022]
[1771675567923,0.09655813,68149.0,68146.0,0.19056]
[1771675568247,0.02353537,68147.0,68146.0,0.19056]
[1771675568431,0.07337059,68148.0,68146.0,0.19078]
[1771675569211,0.073369,68149.0,68146.0,0.19078]
[1771675569387,0.09690437,68149.0,68146.0,0.19078]
[1771675569904,0.07336977,68148.0,68146.0,0.03764443]
[1771675570112,0.07337403,68144.0,68141.0,0.00022]
[1771675570317,0.07337403,68144.0,68143.0,0.16613196]
[1771675570530,0.07337313,68145.0,68143.0,0.16613196]
[1771675570893,0.09825902,68145.0,68143.0,0.16613196]
[1771675571211,0.09825902,68145.0,68144.0,0.19064]
[1771675571607,0.07337313,68145.0,68143.0,0.19064]
[1771675571811,0.02488589,68144.0,68143.0,0.19064]
[1771675573100,0.09825992,68144.0,68143.0,0.19064]
[1771675573599,0.29345893,68153.0,68134.0,0.0733846]
[1771675573600,0.07337668,68142.0,68134.0,0.0733846]
[1771675573825,0.07337668,68142.0,68135.0,0.19064]
[1771675574245,0.07337768,68141.0,68135.0,0.19064]
[1771675575007,0.07337768,68141.0,68136.0,0.00022]
[1771675575428,0.07337904,68140.0,68136.0,0.00022]
[1771675576137,0.07337904,68140.0,68136.0,0.02323667]
[1771675576331,0.07349648,68141.0,68136.0,0.02323667]
[1771675577992,0.07349648,68141.0,68136.0,0.02309253]
[1771675578180,0.07349704,68141.0,68134.0,9.159e-05]
[1771675578338,0.07337916,68140.0,68137.0,0.19096]
[1771675578854,0.0733795,68139.0,68137.0,0.19096]
[1771675580481,0.0733795,68139.0,68137.0,0.19081586]
[1771675580678,0.02488589,68138.0,68134.0,9.159e-05]
[1771675581158,0.0733795,68139.0,68134.0,9.159e-05]
[1771675582019,0.0733795,68139.0,68137.0,0.00022]
[1771675584630,0.0733795,68139.0,68131.0,0.24962758]
[1771675584631,0.02488589,68137.0,68131.0,0.17624]
[1771675585508,0.0733805,68138.0,68131.0,0.24962769]
[1771675585709,0.0733805,68138.0,68131.0,0.17624]
[1771675586095,0.07337976,68139.0,68131.0,0.2496279]
[1771675586289,0.09826659,68138.0,68131.0,0.17624]
[1771675587382,0.07338182,68137.0,68131.0,0.17624]
[1771675587587,0.09826674,68138.0,68131.0,0.17624]
[1771675588112,0.07338163,68137.0,68130.0,0.00038]
[1771675588516,0.07338266,68136.0,68130.0,0.00038]
[1771675588728,0.02488589,68131.0,68123.0,0.17646]
[1771675589030,0.09827431,68131.0,68123.0,0.24990228]
[1771675589225,0.02488589,68131.0,68123.0,0.17650589]
[1771675589429,0.07339449,68125.0,68124.0,0.00022]
[1771675589602,0.09828038,68125.0,68124.0,0.00022]
[1771675589802,0.02300119,68133.0,68080.0,0.51293103]
[1771675589803,0.0003571,68130.0,68080.0,0.51293103]
[1771675590030,0.02300119,68091.0,68080.0,0.00782296]
[1771675590224,0.3178919,68081.0,68080.0,0.00016]
[1771675590426,0.29400835,68081.0,68077.0,0.02381321]
[1771675590631,0.23447533,68081.0,68077.0,0.02381321]
[1771675590825,0.23447533,68081.0,68080.0,0.073443]
[1771675591028,0.23447533,68081.0,68078.0,0.07344322]
[1771675591227,0.07359442,68089.0,68079.0,0.07344351]
[1771675591566,0.02125156,68088.0,68070.0,0.0003571]
[1771675591768,0.07344511,68079.0,68070.0,0.0003571]
[1771675591968,0.02300119,68080.0,68070.0,0.0003417]
[1771675592264,0.00038967,68088.0,68071.0,0.02301667]
[1771675592465,0.07343808,68085.0,68075.0,0.07344817]
[1771675592812,0.07343808,68085.0,68075.0,0.07362987]
[1771675593111,0.07343889,68084.0,68075.0,0.07362997]
[1771675593311,0.07343889,68084.0,68075.0,0.07362998]
[1771675593508,0.07343957,68085.0,68075.0,0.07362998]
[1771675593509,0.07343562,68087.0,68078.0,0.0734441]
[1771675593947,0.00016093,68086.0,68078.0,0.0734441]
[1771675594767,0.07359749,68086.0,68078.0,0.0734441]
[1771675596004,0.00016093,68086.0,68078.0,0.0734441]
[1771675596403,0.00016093,68086.0,68076.0,0.0983074]
[1771675596554,0.07343778,68085.0,68076.0,0.07344717]
[1771675596753,0.07359768,68086.0,68077.0,0.07344613]
[1771675598011,0.00016093,68086.0,68078.0,0.07344495]
[1771675600293,0.02305781,68085.0,68075.0,0.0001817]
[1771675600519,0.07344596,68078.0,68070.0,0.07383378]
[1771675600671,0.07344422,68079.0,68070.0,0.07383378]
[1771675601206,0.07344339,68080.0,68070.0,0.00038]
[1771675601207,0.07344628,68077.0,68070.0,0.00038]
[1771675601408,0.07343954,68084.0,68075.0,0.07344824]
[1771675601727,0.07343761,68085.0,68075.0,0.07344824]
[1771675601955,0.02305781,68085.0,68070.0,0.00038]
[1771675602100,0.07344584,68078.0,68070.0,0.00038]
[1771675602502,0.02305781,68082.0,68070.0,0.07383363]
[1771675603292,0.2937254,68091.0,68074.0,0.07344846]
[1771675603505,0.07343973,68084.0,68075.0,0.07344757]
[1771675603849,0.07344094,68082.0,68074.0,0.07344846]
[1771675604963,0.00016093,68081.0,68074.0,0.07344846]
[1771675607096,0.00016093,68081.0,68073.0,0.07344842]
[1771675607274,0.00016093,68081.0,68075.0,0.07344754]
[1771675609993,0.00016093,68081.0,68071.0,0.29380752]
[1771675610134,0.00016093,68081.0,68075.0,0.07344783]
[1771675610333,0.00016093,68081.0,68074.0,0.00022]
[1771675611306,0.00016093,68081.0,68074.0,0.07366846]
[1771675612179,0.07344599,68078.0,68070.0,0.0738336]
[1771675612496,0.0734444,68079.0,68071.0,0.07345198]
[1771675612875,0.09666103,68081.0,68073.0,0.07344982]
[1771675612876,0.07360322,68081.0,68073.0,0.07344982]
[1771675613795,0.0002,68086.0,68070.0,0.00038]
[1771675613986,0.0002,68086.0,68079.0,0.07344365]
[1771675614392,0.0002,68086.0,68079.0,0.06356693]
[1771675614951,0.07363675,68086.0,68079.0,0.06356693]
[1771675615155,0.0002,68086.0,68077.0,0.07344605]
[1771675615306,0.0002,68086.0,68078.0,0.05197557]
[1771675615523,0.0002,68086.0,68082.0,0.07343998]
[1771675615693,0.0002,68086.0,68081.0,0.07344165]
[1771675617326,0.14474049,68085.0,68076.0,0.29378667]
[1771675617533,0.11607461,68081.0,68080.0,0.073443]
[1771675617730,0.2608151,68081.0,68080.0,0.0598775]
[1771675618161,0.14474049,68081.0,68080.0,0.0598775]
[1771675618311,0.2608151,68081.0,68080.0,0.0598775]
[1771675619031,0.14474049,68081.0,68080.0,0.0598775]
[1771675619332,0.32020871,68081.0,68076.0,0.29378667]
[1771675619537,0.14474049,68080.0,68079.0,0.07344408]
[1771675619885,0.12841121,68080.0,68079.0,0.07344408]
[1771675620599,0.11210813,68088.0,68087.0,0.07343447]
[1771675620786,0.00016,68090.0,68084.0,0.07343777]
[1771675620985,0.00016,68090.0,68084.0,0.07348366]
[1771675621189,0.02837615,68090.0,68084.0,0.07348366]
[1771675622977,0.02837615,68090.0,68084.0,4.589e-05]
[1771675623174,0.02837615,68090.0,68084.0,0.07348455]
[1771675624171,0.00016,68090.0,68085.0,0.07343749]
[1771675624369,0.02837615,68090.0,68085.0,0.07343761]